[Event "9th Sharjah Cup Women 2018"]
[Site "Sharjah"]
[Date "2018.12.19"]
[Round "8"]
[White "Khalil, Hanan"]
[Black "Alieva, Alexandra"]
[Result "0-1"]
[ECO "C42"]
[WhiteElo "1286"]
[BlackElo "2102"]
[Annotator "NA"]
[PlyCount "60"]
[EventDate "2018.12.14"]
[EventType "swiss"]
[EventCountry "UAE"]
[SourceTitle "playchess.com"]
[Source "ChessBase"]
[SourceQuality "1"]
[TimeControl "5400+30"]

1. e4 {[%emt 0:00:00]} e5 {[%emt 0:00:00]} 2. Nf3 {[%emt 0:00:00]} Nf6 {[%emt 0:00:00]} 3. Nc3 {[%emt 0:00:00]} Bb4 {[%emt 0:00:00]} 4. Bc4 {[%emt 0:04:29]} Nxe4 {[%emt 0:12:31]} 5. Nxe4 {[%emt 0:01:14]} d5 {[%emt 0:00:05]} 6. Bb3 {[%emt 0:16:04]} dxe4 {[%emt 0:00:29]} 7. Nxe5 {[%emt 0:00:32]} Qg5 {[%emt 0:03:19]} 8. Bxf7+ {[%emt 0:14:41]} Kd8 {[%emt 0:05:39]} 9. Nc4 {[%emt 0:08:20]} Qxg2 {[%emt 0:00:55]} 10. Rf1 {[%emt 0:00:01]} Bg4 {[%emt 0:00:48]} 11. Ne3 {[%emt 0:01:49]} Qxf1+ {[%emt 0:00:30]} 12. Nxf1 {[%emt 0:00:39]} Bxd1 {[%emt 0:00:07]} 13. Kxd1 {[%emt 0:00:05]} Rf8 {[%emt 0:00:05]} 14. Bd5 {[%emt 0:00:55]} Nc6 {[%emt 0:00:29]} 15. Ke1 {[%emt 0:02:21]} Kd7 $19 {[%emt 0:00:47]} 16. Ne3 {[%emt 0:00:36]} Rae8 {[%emt 0:00:26]} 17. c3 {[%emt 0:00:33]} Bc5 {[%emt 0:00:10]} 18. b4 {[%emt 0:00:25]} Bxe3 {[%emt 0:00:16]} 19. dxe3 {[%emt 0:00:03]} Rf5 {[%emt 0:00:33]} 20. Bc4 {[%emt 0:00:35]} Ne5 {[%emt 0:00:22]} 21. Bf1 {[%emt 0:01:31]} Nf3+ {[%emt 0:01:15]} 22. Ke2 {[%emt 0:01:27]} Ref8 {[%emt 0:00:54]} 23. Ba3 {[%emt 0:01:07]} Ng1+ {[%emt 0:00:28]} 24. Ke1 {[%emt 0:00:08]} Rxf2 {[%emt 0:01:27]} 25. Rd1+ {[%emt 0:00:36]} Kc8 {[%emt 0:00:12]} 26. Bc4 {[%emt 0:00:27]} Rxh2 {[%emt 0:00:40]} 27. Be6+ {[%emt 0:00:42]} Kb8 {[%emt 0:00:05]} 28. b5 {[%emt 0:00:06]} Nf3+ {[%emt 0:00:07]} 29. Kf1 {[%emt 0:00:19]} Nd2+ {[%emt 0:01:06]} 30. Kg1 {[%emt 0:00:07]} Rff2 {[%emt 0:00:24]} 0-1

[Event "9th Sharjah Cup Women 2018"]
[Site "Sharjah"]
[Date "2018.12.19"]
[Round "8"]
[White "Almaamari, Zainab Darwish"]
[Black "Nass, Sara"]
[Result "0-1"]
[ECO "E76"]
[WhiteElo "1235"]
[BlackElo "1840"]
[Annotator "NA"]
[PlyCount "50"]
[EventDate "2018.12.14"]
[EventType "swiss"]
[EventCountry "UAE"]
[SourceTitle "playchess.com"]
[Source "ChessBase"]
[SourceQuality "1"]
[TimeControl "5400+30"]

1. d4 {[%emt 0:01:11]} Nf6 {[%emt 0:00:00]} 2. c4 {[%emt 0:00:11]} g6 {[%emt 0:00:00]} 3. Nc3 {[%emt 0:00:16]} Bg7 {[%emt 0:00:00]} 4. e4 {[%emt 0:00:12]} d6 {[%emt 0:00:00]} 5. f4 {[%emt 0:00:10]} O-O {[%emt 0:00:19]} 6. Bd3 {[%emt 0:00:13]} c5 {[%emt 0:00:39]} 7. d5 {[%emt 0:00:33]} e6 {[%emt 0:00:19]} 8. Nge2 {[%emt 0:00:24]} Re8 {[%emt 0:04:34]} 9. h3 {[%emt 0:00:26]} exd5 {[%emt 0:05:19]} 10. cxd5 {[%emt 0:00:16]} a6 {[%emt 0:05:27]} 11. g4 {[%emt 0:00:31]} b5 {[%emt 0:00:55]} 12. Ng3 {[%emt 0:02:39]} Bb7 {[%emt 0:19:53]} 13. O-O {[%emt 0:00:33]} Nbd7 {[%emt 0:11:27]} 14. g5 {[%emt 0:00:35]} Nh5 {[%emt 0:05:25]} 15. Nxh5 {[%emt 0:00:04]} gxh5 {[%emt 0:00:04]} 16. Qxh5 {[%emt 0:00:09]} c4 {[%emt 0:01:47]} 17. Bc2 {[%emt 0:00:57]} b4 {[%emt 0:01:27]} 18. Ne2 {[%emt 0:01:49]} Nc5 {[%emt 0:05:04]} 19. Ng3 {[%emt 0:00:48]} Nd3 {[%emt 0:02:48]} 20. Nf5 {[%emt 0:00:50]} Rxe4 {[%emt 0:01:40]} 21. Nxg7 {[%emt 0:00:07]} Kxg7 {[%emt 0:00:41]} 22. Bxd3 {[%emt 0:00:37]} cxd3 {[%emt 0:00:35]} 23. Qf3 {[%emt 0:00:45]} Qb6+ {[%emt 0:00:55]} 24. Kh2 {[%emt 0:01:05]} Re2+ {[%emt 0:08:50]} 25. Kh1 {[%emt 0:00:47]} Qd4 {[%emt 0:00:42]} 0-1

[Event "9th Sharjah Cup Women 2018"]
[Site "Sharjah"]
[Date "2018.12.20"]
[Round "9"]
[White "Socko, Monika"]
[Black "Kiolbasa, Oliwia"]
[Result "1-0"]
[ECO "A50"]
[WhiteElo "2458"]
[BlackElo "2244"]
[Annotator "ChessBase"]
[PlyCount "115"]
[EventDate "2018.12.14"]
[EventType "swiss"]
[EventCountry "UAE"]
[SourceTitle "playchess.com"]
[Source "ChessBase"]
[SourceQuality "1"]
[TimeControl "5400+30"]

1. c4 {[%emt 0:00:00]} b6 {[%emt 0:00:00]} 2. d4 {[%emt 0:00:00]} Nf6 {[%emt 0:00:14]} 3. f3 {[%emt 0:01:15]} Nc6 {[%emt 0:00:20]} 4. d5 {[%emt 0:04:31]} Ne5 {[%emt 0:01:47]} 5. Qd4 {[%emt 0:03:39]} Ng6 {[%emt 0:01:56]} 6. e4 {[%emt 0:03:18]} e5 {[%emt 0:00:44]} 7. Qf2 {[%emt 0:06:16]} Bc5 {[%emt 0:01:35]} 8. Be3 {[%emt 0:00:13]} d6 {[%emt 0:00:43]} 9. Bxc5 {[%emt 0:03:30]} bxc5 {[%emt 0:00:19]} 10. Nc3 {[%emt 0:00:09]} Rb8 {[%emt 0:05:44]} 11. g3 {[%emt 0:02:27]} h5 {[%emt 0:02:57]} 12. h4 {[%emt 0:01:00]} O-O {[%emt 0:02:47]} 13. Bd3 {[%emt 0:01:05]} c6 {[%emt 0:07:23]} 14. Qd2 {[%emt 0:13:49]} Ba6 {[%emt 0:04:42]} 15. dxc6 {[%emt 0:07:32]} Ne7 {[%emt 0:01:38]} 16. Nge2 {[%emt 0:00:06]} Nxc6 {[%emt 0:00:31]} 17. O-O {[%emt 0:00:40]} Re8 {[%emt 0:17:54]} 18. b3 {[%emt 0:02:19]} Nd4 {[%emt 0:00:07]} 19. Rae1 {[%emt 0:04:58]} Qd7 {[%emt 0:02:02]} 20. Qg5 {[%emt 0:08:08]} Qh3 {[%emt 0:10:01]} 21. Rf2 {[%emt 0:02:06]} Ne6 {[%emt 0:08:03]} 22. Qd2 {[%emt 0:01:43]} Nd4 {[%emt 0:00:11]} 23. Nxd4 {[%emt 0:05:46]} exd4 {[%emt 0:01:11]} 24. Ne2 {[%emt 0:00:01]} Qd7 {[%emt 0:00:19]} 25. Nf4 {[%emt 0:00:29]} g6 {[%emt 0:01:05]} 26. Bf1 {[%emt 0:00:25]} Qc7 {[%emt 0:02:54]} 27. Bg2 {[%emt 0:00:37]} Kg7 {[%emt 0:02:22]} 28. Rfe2 {[%emt 0:00:32]} Re7 {[%emt 0:01:02]} 29. Nd3 {[%emt 0:01:50]} Rbe8 {[%emt 0:01:02]} 30. Qf4 {[%emt 0:02:53]} Nd7 {[%emt 0:04:16]} 31. Qg5 {[%emt 0:01:37]} Kh7 {[%emt 0:07:59]} 32. Qd2 {[%emt 0:02:03]} Kg7 {[%emt 0:01:12]} 33. f4 {[%emt 0:01:33]} Nf6 {[%emt 0:04:17]} 34. f5 {[%emt 0:00:22]} Nh7 {[%emt 0:01:16]} 35. Nf4 {[%emt 0:02:25]} Re5 {[%emt 0:00:11]} 36. Nd5 {[%emt 0:02:19]} Qd8 {[%emt 0:00:07]} 37. Rf2 {[%emt 0:00:46]} gxf5 {[%emt 0:02:08]} 38. Ref1 {[%emt 0:02:59]} Bc8 {[%emt 0:00:12]} 39. exf5 {[%emt 0:01:03]} Rg8 {[%emt 0:02:03]} 40. Kh2 {[%emt 0:01:42]} Kh8 {[%emt 0:00:57]} 41. f6 {[%emt 0:05:18]} Rg4 {[%emt 0:03:19]} 42. Bh3 {[%emt 0:01:05]} Qd7 {[%emt 0:00:37]} 43. Bxg4 {[%emt 0:00:39]} Qxg4 {[%emt 0:00:02]} 44. Qf4 {[%emt 0:00:44]} Qh3+ {[%emt 0:00:58]} 45. Kg1 {[%emt 0:00:01]} Bb7 {[%emt 0:00:23]} 46. Rh2 {[%emt 0:00:19]} Qc8 {[%emt 0:00:16]} 47. Rhf2 {[%emt 0:02:14]} Qf8 {[%emt 0:00:33]} 48. Kh2 {[%emt 0:00:47]} Bc8 {[%emt 0:00:12]} 49. b4 {[%emt 0:00:55]} Be6 {[%emt 0:01:06]} 50. bxc5 {[%emt 0:00:18]} Bxd5 {[%emt 0:00:24]} 51. cxd5 {[%emt 0:00:04]} Rxd5 {[%emt 0:00:19]} 52. c6 {[%emt 0:00:41]} Rc5 {[%emt 0:00:07]} 53. Qe4 {[%emt 0:00:54]} d5 {[%emt 0:00:17]} 54. Qxd4 {[%emt 0:00:49]} Rxc6 {[%emt 0:00:26]} 55. Rf5 {[%emt 0:00:06]} Rc2+ {[%emt 0:00:27]} 56. R1f2 {[%emt 0:00:16]} Rxf2+ {[%emt 0:00:25]} 57. Qxf2 {[%emt 0:00:27]} Qh6 {[%emt 0:00:04]} 58. Qxa7 {[%emt 0:01:13]} 1-0

[Event "9th Sharjah Cup Women 2018"]
[Site "Sharjah"]
[Date "2018.12.20"]
[Round "9"]
[White "Mkrtchian, Lilit"]
[Black "Szczepkowska, Karina"]
[Result "1/2-1/2"]
[ECO "A05"]
[WhiteElo "2392"]
[BlackElo "2408"]
[Annotator "ChessBase"]
[PlyCount "62"]
[EventDate "2018.12.14"]
[EventType "swiss"]
[EventCountry "UAE"]
[SourceTitle "playchess.com"]
[Source "ChessBase"]
[SourceQuality "1"]
[TimeControl "5400+30"]

1. Nf3 {[%emt 0:00:00]} Nf6 {[%emt 0:00:37]} 2. c4 {[%emt 0:00:52]} e6 {[%emt 0:01:29]} 3. g3 {[%emt 0:01:54]} d5 {[%emt 0:01:59]} 4. Bg2 {[%emt 0:01:04]} d4 {[%emt 0:05:23]} 5. O-O {[%emt 0:02:01]} c5 {[%emt 0:02:02]} 6. e3 {[%emt 0:01:47]} Nc6 {[%emt 0:01:29]} 7. exd4 {[%emt 0:00:56]} cxd4 {[%emt 0:00:09]} 8. d3 {[%emt 0:00:12]} Bd6 {[%emt 0:08:00]} 9. Bg5 {[%emt 0:04:34]} h6 {[%emt 0:02:18]} 10. Bxf6 {[%emt 0:00:18]} Qxf6 {[%emt 0:00:07]} 11. Nbd2 {[%emt 0:01:07]} Qe7 {[%emt 0:04:46]} 12. a3 {[%emt 0:05:08]} a5 {[%emt 0:00:49]} 13. Ne4 {[%emt 0:11:18]} Bc7 {[%emt 0:04:51]} 14. b4 {[%emt 0:07:03]} axb4 {[%emt 0:08:26]} 15. axb4 {[%emt 0:00:20]} Rxa1 {[%emt 0:00:07]} 16. Qxa1 {[%emt 0:00:05]} f5 {[%emt 0:05:40]} 17. Nc5 {[%emt 0:02:01]} O-O {[%emt 0:00:53]} 18. Nxd4 {[%emt 0:08:50]} Nxd4 {[%emt 0:02:06]} 19. Qxd4 {[%emt 0:01:23]} b6 {[%emt 0:03:03]} 20. Nb3 {[%emt 0:03:22]} Qxb4 {[%emt 0:00:17]} 21. Rb1 {[%emt 0:01:57]} e5 {[%emt 0:03:31]} 22. Qd5+ {[%emt 0:03:11]} Kh8 {[%emt 0:00:59]} 23. Qc6 {[%emt 0:03:07]} Qd6 {[%emt 0:02:53]} 24. Qxd6 {[%emt 0:02:21]} Bxd6 {[%emt 0:00:51]} 25. Bd5 {[%emt 0:01:50]} g5 {[%emt 0:04:32]} 26. Kf1 {[%emt 0:02:21]} Kg7 {[%emt 0:01:08]} 27. Ke2 {[%emt 0:01:29]} Kf6 {[%emt 0:00:51]} 28. Nd2 {[%emt 0:02:32]} Bc5 {[%emt 0:03:07]} 29. Nb3 {[%emt 0:01:22]} Bd6 {[%emt 0:01:50]} 30. Nd2 {[%emt 0:02:51]} Bc5 {[%emt 0:00:27]} 31. Nb3 {[%emt 0:00:21]} Bd6 {[%emt 0:00:15]} 1/2-1/2

[Event "9th Sharjah Cup Women 2018"]
[Site "Sharjah"]
[Date "2018.12.20"]
[Round "9"]
[White "Gu, Xiaobing"]
[Black "Velikic, Adela"]
[Result "1-0"]
[ECO "B12"]
[WhiteElo "2295"]
[BlackElo "2298"]
[Annotator "NA"]
[PlyCount "61"]
[EventDate "2018.12.14"]
[EventType "swiss"]
[EventCountry "UAE"]
[SourceTitle "playchess.com"]
[Source "ChessBase"]
[SourceQuality "1"]
[TimeControl "5400+30"]

{[%evp 15,59,6,32767,32767,-25,0,3,-120,-137,-112,-151,-135,-22,-53,151,-43,-33,-44,32767,32767,-239,-229,-193,-259,-247,-231,-158,-150,-122,-251,-149,-143,-20,-6,-3,32767,32767,32767,32767,32767,32767,32767,32767,32767,32767,823]} 1. e4 {[%emt 0:00:00]} c6 {[%emt 0:00:00]} 2. d4 {[%emt 0:00:00]} d5 {[%emt 0:00:00]} 3. f3 {[%emt 0:00:08]} e6 {[%emt 0:00:00]} 4. Nc3 {[%emt 0:00:20]} Bb4 {[%emt 0:00:08]} 5. Bf4 {[%emt 0:00:33]} Ne7 {[%emt 0:02:12] B12: Caro-Kann: Advance Variation} 6. Qd3 {[%emt 0:00:34]} (6. Nge2 b6 7. a3 Bd6 8. Qd2 Ba6 9. O-O-O O-O 10. h4 Bxf4 11. Qxf4 Nd7 12. h5 h6 13. g4 {0-1 (50) Li,C (2714)-Vaibhav,S (2561) Dresden 2018}) 6... Nd7 {[%emt 0:04:23]} 7. O-O-O {[%emt 0:01:39]} a5 $146 {[%emt 0:14:56]} ({Predecessor:} 7... O-O 8. Nge2 Nb6 9. a3 Bd6 10. e5 Bc7 11. Bg5 Nd7 12. f4 b5 13. Ng3 {1-0 (36) McShane,L (2592)-Minasian,A (2555) Istanbul 2003}) 8. h4 {[%emt 0:18:03]} b6 {[%emt 0:12:44]} 9. Nce2 {[%emt 0:02:12]} Ba6 {[%emt 0:07:22]} 10. Qe3 $1 {[%emt 0:00:08]} c5 {[%emt 0:04:54]} 11. a3 {[%emt 0:07:03]} (11. c3 $11) 11... cxd4 {[%emt 0:02:26]} 12. Qxd4 {[%emt 0:00:18]} e5 $1 {[%emt 0:07:09]} 13. Bxe5 {[%emt 0:00:06] [#]} Bc5 {[%emt 0:07:58]} (13... Nc6 $1 $17 {[%cal Rc6d4]} 14. Qxd5 Ncxe5 15. axb4 axb4) 14. Qc3 {[%emt 0:00:06]} Bxg1 $2 {[%emt 0:02:49] [#]} (14... b5 $1 $15 {stays ahead.} 15. Bd4 (15. exd5 $2 b4 $19) 15... b4) 15. Nxg1 $2 {[%emt 0:05:38]} ({Worse is} 15. Rxg1 Rc8 $15) (15. Bc7 $1 $16 {[%cal Rc7d8]} Be3+ 16. Kb1) 15... Bxf1 $1 {[%emt 0:14:47]} 16. exd5 {[%emt 0:00:43]} ({Don't go for} 16. Rxf1 $2 Rc8 $19) 16... Rc8 {[%emt 0:07:18]} 17. Qe3 {[%emt 0:01:51] [#]} O-O $1 {[%emt 0:02:35]} ({Not} 17... Bxg2 18. Rh2 $11) 18. Bxg7 {[%emt 0:25:45]} Nf5 {[%emt 0:00:57]} ({Weaker is} 18... Bxg2 19. Bxf8 Nf5 {[%mdl 64] Double Attack} 20. Qf4 $16) 19. Qf4 {[%emt 0:01:56]} (19. Qf2 {keeps fighting.} Kxg7 20. g4) 19... Nxg7 {[%emt 0:00:17]} 20. Rxf1 {[%emt 0:00:06]} Qf6 {[%emt 0:01:42]} 21. Ne2 {[%emt 0:02:12]} Rfe8 {[%emt 0:01:31]} 22. Qd2 {[%emt 0:03:00] [#]} (22. Qxf6 $17 Nxf6 23. Nc3) 22... Nf5 {[%emt 0:01:17]} ({Black should try} 22... b5 $1 $19 {[%cal Rb5b4]} 23. Re1 {[#]} b4 $1 {[%mdl 512]} 24. axb4 axb4 25. Qxb4 Ra8) 23. Re1 {[%emt 0:02:08]} Rxe2 {[%emt 0:01:48]} (23... Rc4 $19 24. Nc3 Rxe1+ 25. Rxe1 Qxh4) 24. Qxe2 {[%emt 0:03:06]} Nd4 {[%emt 0:01:20] Double Attack} 25. Qe7 {[%emt 0:08:43]} Rxc2+ {[%emt 0:01:16]} 26. Kb1 {[%emt 0:00:05]} Qxe7 {[%emt 0:00:39]} 27. Rxe7 {[%emt 0:00:02]} Rc7 {[%emt 0:00:26]} 28. d6 {[%emt 0:01:44]} Rb7 {[%emt 0:00:13]} 29. Rc1 {[%emt 0:00:08]} Nf5 {[%emt 0:00:30]} 30. Rc7 $18 {[%emt 0:01:14]} Rxc7 {[%emt 0:00:46]} 31. Re8+ {[%emt 0:00:04]} 1-0

[Event "9th Sharjah Cup Women 2018"]
[Site "Sharjah"]
[Date "2018.12.20"]
[Round "9"]
[White "Kulkarni Bhakti"]
[Black "Berke, Ana"]
[Result "1-0"]
[ECO "D31"]
[WhiteElo "2283"]
[BlackElo "2151"]
[Annotator "ChessBase"]
[PlyCount "151"]
[EventDate "2018.12.14"]
[EventType "swiss"]
[EventCountry "UAE"]
[SourceTitle "playchess.com"]
[Source "ChessBase"]
[SourceQuality "1"]
[TimeControl "5400+30"]

1. d4 {[%emt 0:00:00]} d5 {[%emt 0:00:02]} 2. c4 {[%emt 0:00:53]} e6 {[%emt 0:00:06]} 3. Nc3 {[%emt 0:00:25]} a6 {[%emt 0:00:07]} 4. cxd5 {[%emt 0:03:01]} exd5 {[%emt 0:00:07]} 5. Bf4 {[%emt 0:02:52]} Nf6 {[%emt 0:01:14]} 6. e3 {[%emt 0:01:41]} Bd6 {[%emt 0:01:13]} 7. Bg5 {[%emt 0:06:05]} c6 {[%emt 0:01:06]} 8. Bd3 {[%emt 0:00:12]} O-O {[%emt 0:03:35]} 9. Qc2 {[%emt 0:01:22]} h6 {[%emt 0:00:45]} 10. Bh4 {[%emt 0:00:16]} Re8 {[%emt 0:00:57]} 11. Nf3 {[%emt 0:04:25]} Be7 {[%emt 0:03:44]} 12. O-O {[%emt 0:07:22]} Ne4 {[%emt 0:03:20]} 13. Bxe7 {[%emt 0:06:21]} Qxe7 {[%emt 0:00:27]} 14. Bxe4 {[%emt 0:01:34]} dxe4 {[%emt 0:00:12]} 15. Nd2 {[%emt 0:00:07]} f5 {[%emt 0:02:00]} 16. Nc4 {[%emt 0:03:02]} Nd7 {[%emt 0:01:44]} 17. Rfd1 {[%emt 0:04:49]} Nf6 {[%emt 0:03:27]} 18. Nb6 {[%emt 0:01:21]} Rb8 {[%emt 0:00:40]} 19. d5 {[%emt 0:03:52]} cxd5 {[%emt 0:13:34]} 20. Ncxd5 {[%emt 0:00:14]} Nxd5 {[%emt 0:00:47]} 21. Nxd5 {[%emt 0:00:50]} Qf7 {[%emt 0:00:49]} 22. Nc7 {[%emt 0:03:27]} Rf8 {[%emt 0:00:54]} 23. Qb3 {[%emt 0:18:58]} Kh7 {[%emt 0:11:29]} 24. Qb6 {[%emt 0:09:20]} Bd7 {[%emt 0:04:32]} 25. b3 {[%emt 0:00:11]} Rfc8 {[%emt 0:09:32]} 26. Qd6 {[%emt 0:00:16]} Rd8 {[%emt 0:03:25]} 27. Qd5 {[%emt 0:06:16]} Qf6 {[%emt 0:02:28]} 28. Qd4 {[%emt 0:02:19]} Qf7 {[%emt 0:04:06]} 29. Qb6 {[%emt 0:01:18]} Rdc8 {[%emt 0:00:59]} 30. Nd5 {[%emt 0:01:00]} Bc6 {[%emt 0:07:34]} 31. Nb4 {[%emt 0:00:44]} Qf6 {[%emt 0:05:04]} 32. Rac1 {[%emt 0:02:15]} Bb5 {[%emt 0:09:46]} 33. Qxf6 {[%emt 0:00:44]} gxf6 {[%emt 0:00:06]} 34. h3 {[%emt 0:01:36]} Kg7 {[%emt 0:02:57]} 35. Nd5 {[%emt 0:00:16]} Kf7 {[%emt 0:01:16]} 36. Nb6 {[%emt 0:00:51]} Rxc1 {[%emt 0:00:25]} 37. Rxc1 {[%emt 0:00:01]} Bc6 {[%emt 0:00:34]} 38. Rd1 {[%emt 0:00:24]} Ke6 {[%emt 0:00:44]} 39. Kf1 {[%emt 0:00:34]} h5 {[%emt 0:01:03]} 40. h4 {[%emt 0:00:11]} Bb5+ {[%emt 0:00:54]} 41. Ke1 {[%emt 0:00:09]} Bd3 {[%emt 0:00:42]} 42. Rc1 {[%emt 0:00:09]} Rd8 {[%emt 0:01:33]} 43. Na4 {[%emt 0:03:21]} Ke5 {[%emt 0:00:55]} 44. Rc7 {[%emt 0:02:31]} Bb1 {[%emt 0:00:25]} 45. Rxb7 {[%emt 0:00:43]} Rc8 {[%emt 0:00:26]} 46. Re7+ {[%emt 0:01:41]} Kd6 {[%emt 0:00:33]} 47. Ra7 {[%emt 0:00:22]} Rc1+ {[%emt 0:00:13]} 48. Kd2 {[%emt 0:00:03]} Rc2+ {[%emt 0:00:08]} 49. Kd1 {[%emt 0:00:25]} Rxf2 {[%emt 0:00:23]} 50. Rxa6+ {[%emt 0:00:04]} Ke7 {[%emt 0:00:14]} 51. Nc3 {[%emt 0:00:18]} Bd3 {[%emt 0:00:59]} 52. Nd5+ {[%emt 0:00:15]} Kd8 {[%emt 0:00:41]} 53. Ra8+ {[%emt 0:00:53]} Kd7 {[%emt 0:00:21]} 54. Nxf6+ {[%emt 0:00:12]} Kc6 {[%emt 0:00:25]} 55. Nxh5 {[%emt 0:00:24]} Rxg2 {[%emt 0:00:56]} 56. Nf4 {[%emt 0:00:06]} Rh2 {[%emt 0:00:31]} 57. h5 {[%emt 0:01:07]} Kc5 {[%emt 0:00:04]} 58. Ra5+ {[%emt 0:02:48]} Kb4 {[%emt 0:00:35]} 59. Rxf5 {[%emt 0:00:27]} Rxa2 {[%emt 0:00:38]} 60. h6 {[%emt 0:00:13]} Kc3 {[%emt 0:00:47]} 61. Rc5+ {[%emt 0:00:16]} Kxb3 {[%emt 0:00:07]} 62. h7 {[%emt 0:00:24]} Rh2 {[%emt 0:00:40]} 63. Rh5 {[%emt 0:00:37]} Be2+ {[%emt 0:00:35]} 64. Ke1 {[%emt 0:00:08]} Bxh5 {[%emt 0:00:47]} 65. h8=Q {[%emt 0:00:07]} Rh1+ {[%emt 0:00:28]} 66. Kf2 {[%emt 0:00:08]} Bf3 {[%emt 0:00:25]} 67. Qg8+ {[%emt 0:00:30]} Kc3 {[%emt 0:00:25]} 68. Qd5 {[%emt 0:00:41]} Rh2+ {[%emt 0:00:45]} 69. Kg3 {[%emt 0:00:07]} Rh1 {[%emt 0:00:08]} 70. Qd4+ {[%emt 0:00:09]} Kc2 {[%emt 0:00:06]} 71. Nd5 {[%emt 0:00:13]} Rg1+ {[%emt 0:00:34]} 72. Kf4 {[%emt 0:00:05]} Rg4+ {[%emt 0:00:11]} 73. Kf5 {[%emt 0:00:06]} Rg2 {[%emt 0:00:12]} 74. Qc3+ {[%emt 0:00:20]} Kd1 {[%emt 0:00:04]} 75. Nf6 {[%emt 0:00:11]} Rc2 {[%emt 0:00:32]} 76. Qb3 {[%emt 0:00:16]} 1-0

[Event "9th Sharjah Cup Women 2018"]
[Site "Sharjah"]
[Date "2018.12.20"]
[Round "9"]
[White "Nguyen, Thi Mai Hung"]
[Black "Stetsko, Lanita"]
[Result "1-0"]
[ECO "A40"]
[WhiteElo "2280"]
[BlackElo "2194"]
[Annotator "NA"]
[PlyCount "89"]
[EventDate "2018.12.14"]
[EventType "swiss"]
[EventCountry "UAE"]
[SourceTitle "playchess.com"]
[Source "ChessBase"]
[SourceQuality "1"]
[TimeControl "5400+30"]

{[%evp 18,89,46,67,46,51,32767,0,104,112,108,103,102,32767,228,220,245,248,32767,32767,32767,32767,257,32767,32767,32767,302,331,32767,32767,339,32767,351,308,304,361,313,408,32767,32767,32767,32767,32767,32767,388,408,417,467,475,564,32767,32767,32767,32767,547,32767,32767,32767,32767,32767,32767,32767,32767,867,926,1190,927,32767,32767,1325,32767,1405,1559,2278]} 1. d4 {[%emt 0:00:00]} g6 {[%emt 0:00:00]} 2. c4 {[%emt 0:00:19]} Bg7 {[%emt 0:00:02]} 3. e4 {[%emt 0:00:40]} e6 {[%emt 0:00:37]} 4. Nc3 {[%emt 0:00:14]} Ne7 {[%emt 0:00:06] A40: Unusual replies to 1 d4} 5. Be3 {[%emt 0:02:22]} d5 {[%emt 0:01:08]} 6. cxd5 {[%emt 0:03:21]} exd5 {[%emt 0:00:52]} 7. e5 {[%emt 0:01:58]} O-O $146 {[%emt 0:05:10]} ({Predecessor:} 7... c5 8. Bb5+ Nbc6 9. Nge2 O-O 10. dxc5 Nxe5 11. O-O a6 12. Bd3 Nxd3 13. Qxd3 {1-0 (38) Jussupow,A (2585)-Skytte,R (2390) Tallinn 2016}) 8. f4 {[%emt 0:01:27]} Nf5 {[%emt 0:04:18]} 9. Bf2 {[%emt 0:00:14]} c5 {[%emt 0:13:34]} 10. dxc5 {[%emt 0:04:47]} d4 {[%emt 0:04:25]} 11. Ne4 {[%emt 0:01:00]} b6 {[%emt 0:08:14]} 12. g4 {[%emt 0:07:54]} ({Better is} 12. Nf3 $14) 12... Bb7 {[%emt 0:25:01]} (12... Ne3 $11 {remains equal.} 13. Bxe3 dxe3) 13. Bg2 {[%emt 0:03:32]} Kh8 {[%emt 0:01:00]} ({Don't go for} 13... Ne3 $2 14. Bxe3 bxc5 {[#]} 15. Nf6+ $1 {[%mdl 512]} Bxf6 16. Bxb7 $18) 14. gxf5 {[%emt 0:03:53]} gxf5 {[%emt 0:00:16]} 15. Qxd4 {[%emt 0:05:14]} bxc5 {[%emt 0:05:46]} (15... Qxd4 $16 {keeps fighting.} 16. Bxd4 fxe4) 16. Qxd8 {[%emt 0:08:07]} ({But not} 16. Nxc5 $2 Bxg2 17. Nf3 (17. Qxd8 $2 Rxd8 18. Ne2 Bxh1 $19) 17... Bxh1 $19) ({Much less strong is} 16. Qxc5 $6 Na6 $14) 16... Rxd8 {[%emt 0:00:01]} 17. Nd6 {[%emt 0:04:06]} ({Not} 17. Bxc5 fxe4 18. Nh3 Nd7 $16) 17... Bxg2 {[%emt 0:00:14]} 18. Nxf7+ {[%emt 0:00:05]} Kg8 {[%emt 0:00:02]} 19. Nxd8 {[%emt 0:00:07]} Bxh1 {[%emt 0:04:22]} 20. Ne6 {[%emt 0:01:57]} Na6 {[%emt 0:02:17]} 21. O-O-O {[%emt 0:14:29]} Nb4 {[%emt 0:02:59]} 22. a3 {[%emt 0:01:32]} ({Don't play} 22. Bxc5 Rc8 $18) 22... Nd5 {[%emt 0:00:32]} 23. Nh3 {[%emt 0:01:08]} Bf3 {[%emt 0:02:40]} 24. Rd3 {[%emt 0:00:14]} Bg4 {[%emt 0:02:44]} 25. Rxd5 {[%emt 0:00:27]} Bxh3 {[%emt 0:00:02]} 26. Rd3 {[%emt 0:00:19]} Bg4 {[%emt 0:00:22]} 27. Rg3 {[%emt 0:13:49]} Bh6 {[%emt 0:00:30]} 28. h3 {[%emt 0:00:10]} Kf7 {[%emt 0:00:04]} 29. hxg4 {[%emt 0:00:06]} Kxe6 {[%emt 0:00:12]} 30. g5 {[%emt 0:00:02]} Bg7 {[%emt 0:00:36]} 31. Rh3 {[%emt 0:00:39]} Rh8 {[%emt 0:03:22]} 32. Bxc5 {[%emt 0:00:33]} Kd5 {[%emt 0:01:27]} 33. Bxa7 {[%emt 0:01:16]} Ke4 {[%emt 0:00:07]} 34. Be3 {[%emt 0:00:30]} Rc8+ {[%emt 0:00:57]} 35. Kb1 {[%emt 0:00:20]} Bf8 {[%emt 0:00:39]} 36. Bc1 {[%emt 0:00:46]} Rc7 {[%emt 0:00:34]} 37. b4 {[%emt 0:02:36]} Kd4 {[%emt 0:00:41]} 38. Kb2 {[%emt 0:00:33]} Rb7 {[%emt 0:03:08]} 39. Kb3 {[%emt 0:03:07]} Rc7 {[%emt 0:00:07]} 40. Bd2 {[%emt 0:00:32]} Rb7 {[%emt 0:00:27]} 41. a4 {[%emt 0:00:34]} Ke4 {[%emt 0:00:32]} 42. a5 {[%emt 0:02:42]} Rd7 {[%emt 0:00:06]} 43. Re3+ {[%emt 0:00:17]} Kd4 {[%emt 0:00:02]} 44. e6 {[%emt 0:01:47]} Rb7 $18 {[%emt 0:00:02]} 45. Re5 {[%emt 0:00:29] Kd5} 1-0